{"text_format":"3","workbook":"xlsx","n_sheets":3,"sheets":["Додаток 3.1","Додаток 3.2","Додаток 3.3"],"read":"whole","date_system":"1900"}

{"sheet":"Додаток 3.1","index":0,"n_rows":46,"n_cols":6,"rows_kept":46,"merged":[[0,0,1,5],[3,0,3,5],[4,0,6,5],[7,0,7,1],[7,2,7,5],[8,0,8,1],[8,2,8,5],[9,0,9,1],[9,2,9,5],[10,0,10,1],[10,2,10,5],[38,0,41,5],[43,0,43,2],[43,3,43,5],[45,0,45,2]]}
["Додаток № 3.1.\n«Розрахунок до цінової пропозиції» до Тендерної документації\nвід \"___\"______________2025 року"]
[]
[]
["Розрахунок до цінової пропозиції:"]
["Послуга із організації та забезпечення проведення заходу \n\"Робоча зустріч щодо координації лікування ВІЛ-інфекції та опортуністичних інфекцій у дітей, які живуть з ВІЛ\""]
[]
[]
["Дата проведення:",null,"Послуги будуть надаватись до 31 березня 2026 року за заявкою Замовника"]
["Тривалість заходу:",null,"3 дні"]
["Місце проведення:",null,"м. Яремче, вказати назву та адресу готелю або іншого спеціалізованого приміщення, в якому буде організовано захід, що відповідає вимогам Тендерної документації "]
["Кількість учасників:",null,28]
["№ з/п","Вид послуг","Назва одиниці виміру ","Кількість одиниць *","Ціна за одиницю, грн. (без ПДВ)","Загальна вартість, грн. (без ПДВ)"]
[1,"Послуги організпції проживання"]
["1.1.","Одномісний номер на добу зі сніданками ","доба",{"$f":"28*3","v":84},null,{"$f":"IF(OR(ISBLANK(D14),ISBLANK(E14)),\"\",D14*E14)","v":""}]
["2","Послуги оренди конференц зали",{"$nulls":3},{"$f":"IF(OR(ISBLANK(D15),ISBLANK(E15)),\"\",D15*E15)","v":""}]
["2.1","Оренда конференц зали,  укомплектована ноутбуком, радіосистемами (2 шт.), звуковою системою, проекційним екраном (1 шт.), мультимедійним проектором (1 шт.), фліпчартом, з організацією онлайн трансляції в програмі Zoom. Формат розсадки \"острівці\".","день",3,null,""]
["3","Послуги харчування учасників",{"$nulls":3},""]
["3.1","Обіди у  ресторанах готелю","порція",{"$f":"28*3","v":84},null,{"$f":"IF(OR(ISBLANK(D18),ISBLANK(E18)),\"\",D18*E18)","v":""}]
["3.2","Кава-брейки стандартні","порція",{"$f":"28*6","v":168},null,""]
["3.3","Вечері у ресторанах готелю ","порція",{"$f":"28*3","v":84},null,{"$f":"IF(OR(ISBLANK(D20),ISBLANK(E20)),\"\",D20*E20)","v":""}]
["4","Послуги організації проїзду учасників",{"$nulls":3},""]
["4.1","Організація учаснику заходу проїзду міжміським залізничним транспортом або міськими, приміськими, міжміськими автобусними маршрутами загального користування в межах області (до місця проведення заходу)","послуга",28,null,""]
["4.2","Організація учаснику заходу проїзду міжміським залізничним транспортом або міськими, приміськими, міжміськими автобусними маршрутами загального користування в межах області (від місця проведення заходу)","послуга",28,null,""]
["5","Послуги забезпечення учасників заходу питною водою",{"$nulls":3},""]
["5.1","Питна газована вода у пляшках ","шт.",{"$f":"28*3","v":84},null,""]
["5.2","Питна негазована вода у пляшках ","шт.",{"$f":"28*3","v":84},null,""]
["5.3","Кулькові ручки","шт.",28,null,""]
["5.4","Блокнот для фліпчарту та маркери (чотири кольори)","шт.",1,null,""]
["5.5","Блокноти на пружині","шт.",28,null,""]
["6","Послуги дизайну та друку",{"$nulls":3},""]
["6.1","Друк (чорно-білий) роздаткових матеріалів  ","аркуш",{"$f":"5*28","v":140},null,""]
["6.2","Друк (кольоровий) роздаткових матеріалів ","аркуш",{"$f":"5*28","v":140},null,""]
["6.3","Розробка дизайн макету та друк бейджів ","шт.",28,null,""]
["7","Послуги із організації пасажирських перевезень",{"$nulls":3},""]
["7.1","Організація пасажирських перевезень ","послуга",{"$f":"3*2","v":6},null,{"$f":"IF(OR(ISBLANK(D35),ISBLANK(E35)),\"\",D35*E35)","v":""}]
["8","Всього без ПДВ, грн.:",{"$nulls":3},{"$f":"SUM(F13:F35)","v":{"v":0,"d":"0.00"}}]
[]
[]
["* Обсяг послуг може бути зменшений в ході виконання сторонами умов договору. Кількість учасників є орієнтовною та остаточно буде повідомлені Замовником в письмовій формі при подачі замовлення на проведення заходу."]
[]
[]
[]
[]
["Керівник ",null,null,"Прізвище, ініціали"]
[]
["(або уповноважена особа)"]

{"sheet":"Додаток 3.2","index":1,"n_rows":44,"n_cols":6,"rows_kept":44,"merged":[[0,0,1,5],[3,0,3,5],[4,0,6,5],[7,0,7,1],[7,2,7,5],[8,0,8,1],[8,2,8,5],[9,0,9,1],[9,2,9,5],[10,0,10,1],[10,2,10,5],[36,0,39,5],[41,0,41,2],[41,3,41,5],[43,0,43,2]]}
["Додаток № 3.2.\n«Розрахунок до цінової пропозиції» до Тендерної документації\nвід \"___\"______________2025 року"]
[]
[]
["Розрахунок до цінової пропозиції:"]
["Послуга із організації та забезпечення проведення заходу \n\"Підсумкова нарада керівного складу регіональних ТБ Центрів \"Основні підсумки реалізації заходів з подолання ТБ у 2025 році та стратегічне планування на 2026 рік\""]
[]
[]
["Дата проведення:",null,"Послуги будуть надаватись до 31 березня 2026 року за заявкою Замовника"]
["Тривалість заходу:",null,"3 дні"]
["Місце проведення:",null,"м. Луцьк, вказати назву та адресу готелю або іншого спеціалізованого приміщення, в якому буде організовано захід, що відповідає вимогам Тендерної документації "]
["Кількість учасників:",null,45]
["№ з/п","Вид послуг","Назва одиниці виміру  ","Кількість одиниць *","Ціна за одиницю, грн. (без ПДВ)","Загальна вартість, грн. (без ПДВ)"]
[1,"Послуги організпції проживання"]
["1.1.","Одномісний номер на добу зі сніданками ","доба",{"$f":"45*3","v":135},null,{"$f":"IF(OR(ISBLANK(D14),ISBLANK(E14)),\"\",D14*E14)","v":""}]
["2","Послуги оренди конференц зали",{"$nulls":3},{"$f":"IF(OR(ISBLANK(D15),ISBLANK(E15)),\"\",D15*E15)","v":""}]
["2.1","Оренда конференц зали,  укомплектована ноутбуком, радіосистемами (4 шт.), звуковою системою, проекційним екраном (2 шт.), мультимедійним проектором (2 шт.), фліпчартом, з організацією онлайн трансляції в програмі Zoom. Формат \"театр\"","день",3,null,""]
["3","Послуги харчування учасників",{"$nulls":3},""]
["3.1","Обіди у  ресторанах готелю","порція",{"$f":"45*3","v":135},null,""]
["3.2","Кава-брейки стандартні","порція",{"$f":"45*6","v":270},null,""]
["3.3","Вечері у ресторанах готелю ","порція",{"$f":"45*3","v":135},null,""]
["4","Послуги організації проїзду учасників",{"$nulls":3},""]
["4.1","Організація учаснику заходу проїзду міжміським залізничним транспортом або міськими, приміськими, міжміськими автобусними маршрутами загального користування в межах області (до місця проведення заходу)","послуга",45,null,""]
["4.2","Організація учаснику заходу проїзду міжміським залізничним транспортом або міськими, приміськими, міжміськими автобусними маршрутами загального користування в межах області (від місця проведення заходу)","послуга",45,null,""]
["5","Послуги забезпечення учасників заходу питною водою",{"$nulls":3},""]
["5.1","Питна газована вода у пляшках ","шт.",{"$f":"45*3","v":135},null,""]
["5.2","Питна негазована вода у пляшках ","шт.",{"$f":"45*3","v":135},null,""]
["5.3","Кулькові ручки","шт.",45,null,""]
["5.4","Блокнот для фліпчарту та маркери (чотири кольори)","шт.",1,null,""]
["5.5","Блокноти на пружині","шт.",45,null,""]
["6","Послуги дизайну та друку",{"$nulls":3},""]
["6.1","Друк (чорно-білий) роздаткових матеріалів  ","аркуш",{"$f":"10*45","v":450},null,""]
["6.2","Друк (кольоровий) роздаткових матеріалів ","аркуш",{"$f":"5*45","v":225},null,""]
["6.3","Розробка дизайн макету та друк бейджів ","шт.",45,null,""]
["7","Всього без ПДВ, грн.:",{"$nulls":3},{"$f":"SUM(F13:F33)","v":{"v":0,"d":"0.00"}}]
[]
[]
["* Обсяг послуг може бути зменшений в ході виконання сторонами умов договору. Кількість учасників є орієнтовною та остаточно буде повідомлені Замовником в письмовій формі при подачі замовлення на проведення заходу."]
[]
[]
[]
[]
["Керівник ",null,null,"Прізвище, ініціали"]
[]
["(або уповноважена особа)"]

{"sheet":"Додаток 3.3","index":2,"n_rows":46,"n_cols":6,"rows_kept":46,"merged":[[0,0,1,5],[3,0,3,5],[4,0,6,5],[7,0,7,1],[7,2,7,5],[8,0,8,1],[8,2,8,5],[9,0,9,1],[9,2,9,5],[10,0,10,1],[10,2,10,5],[38,0,41,5],[43,0,43,2],[43,3,43,5],[45,0,45,2]]}
["Додаток № 3.3\n«Розрахунок до цінової пропозиції» до Тендерної документації\nвід \"___\"______________2025 року"]
[]
[]
["Розрахунок до цінової пропозиції:"]
["Послуга із організації та забезпечення проведення заходу \n\"Тренінг для керівного складу регіональних ТБ Центрів \"Впровадження в практику оновлених Стандартів медичної допомоги \"Туберкульоз\""]
[]
[]
["Дата проведення:",null,"Послуги будуть надаватись до 31 березня 2026 року за заявкою Замовника"]
["Тривалість заходу:",null,"3 дні"]
["Місце проведення:",null,"м. Яремче, вказати назву та адресу готелю або іншого спеціалізованого приміщення, в якому буде організовано захід, що відповідає вимогам Тендерної документації "]
["Кількість учасників:",null,45]
["№ з/п","Вид послуг","Назва одиниці виміру","Кількість одиниць *","Ціна за одиницю, грн. (без ПДВ)","Загальна вартість, грн. (без ПДВ)"]
[1,"Послуги організпції проживання"]
["1.1.","Одномісний номер на добу зі сніданками ","доба",{"$f":"45*3","v":135},null,{"$f":"IF(OR(ISBLANK(D14),ISBLANK(E14)),\"\",D14*E14)","v":""}]
["2","Послуги оренди конференц зали",{"$nulls":3},{"$f":"IF(OR(ISBLANK(D15),ISBLANK(E15)),\"\",D15*E15)","v":""}]
["2.1","Оренда конференц зали,  укомплектована ноутбуком, радіосистемами (4 шт.), звуковою системою, проекційним екраном (2 шт.), мультимедійним проектором (2 шт.), фліпчартом, з організацією онлайн трансляції в програмі Zoom. Формат розсадки \"острівці\"","день",3,null,""]
["3","Послуги харчування учасників",{"$nulls":3},""]
["3.1","Обіди у  ресторанах готелю","порція",{"$f":"45*3","v":135},null,""]
["3.2","Кава-брейки стандартні","порція",{"$f":"45*6","v":270},null,""]
["3.3","Вечері у ресторанах готелю ","порція",{"$f":"45*3","v":135},null,""]
["4","Послуги організації проїзду учасників",{"$nulls":3},""]
["4.1","Організація учаснику заходу проїзду міжміським залізничним транспортом або міськими, приміськими, міжміськими автобусними маршрутами загального користування в межах області (до місця проведення заходу)","послуга",45,null,""]
["4.2","Організація учаснику заходу проїзду міжміським залізничним транспортом або міськими, приміськими, міжміськими автобусними маршрутами загального користування в межах області (від місця проведення заходу)","послуга",45,null,""]
["5","Послуги забезпечення учасників заходу питною водою",{"$nulls":3},""]
["5.1","Питна газована вода у пляшках ","шт.",{"$f":"45*3","v":135},null,""]
["5.2","Питна негазована вода у пляшках ","шт.",{"$f":"45*3","v":135},null,""]
["5.3","Кулькові ручки","шт.",45,null,""]
["5.4","Блокнот для фліпчарту та маркери (чотири кольори)","шт.",1,null,""]
["5.5","Блокноти на пружині","шт.",45,null,""]
["6","Послуги дизайну та друку",{"$nulls":3},""]
["6.1","Друк (чорно-білий) роздаткових матеріалів  ","аркуш",{"$f":"20*45","v":900},null,""]
["6.2","Друк (кольоровий) роздаткових матеріалів ","аркуш",{"$f":"10*45","v":450},null,""]
["6.3","Розробка дизайн макету та друк бейджів ","шт.",45,null,""]
["7","Послуги із організації пасажирських перевезень",{"$nulls":3},""]
["7.1","Організація пасажирських перевезень ","послуга",{"$f":"5*2","v":10},null,""]
["8","Всього без ПДВ, грн.:",{"$nulls":3},{"$f":"SUM(F13:F35)","v":{"v":0,"d":"0.00"}}]
[]
[]
["* Обсяг послуг може бути зменшений в ході виконання сторонами умов договору. Кількість учасників є орієнтовною та остаточно буде повідомлені Замовником в письмовій формі при подачі замовлення на проведення заходу."]
[]
[]
[]
[]
["Керівник ",null,null,"Прізвище, ініціали"]
[]
["(або уповноважена особа)"]